lending/lending_fUSD_20250131
["ID","MTS","AMOUNT","RATE_DAILY","PERIOD"]
[351101339,1738336270675,-500.0,0.00016986,2]
[351101340,1738336270685,-1361.29,0.00016986,2]
[351101341,1738336270695,-500.0,0.00016986,2]
[351101342,1738336270704,-1453.05,0.00016986,2]
[351101343,1738336270714,-500.0,0.00016986,2]
[351101344,1738336270724,-500.0,0.00016986,2]
[351101345,1738336270734,-500.0,0.00016986,2]
[351101346,1738336270745,-508.72,0.00016986,2]
[351101347,1738336270755,-669.96,0.00016986,2]
[351101348,1738336270764,-705.37,0.00016986,2]
[351101349,1738336270774,-202.1144043,0.00016986,2]
[351101350,1738336270784,-557.82,0.00016986,2]
[351101351,1738336270794,-981.15,0.00016986,2]
[351101352,1738336270804,-151.0,0.00016986,2]
[351101353,1738336270814,-517.34,0.00016986,2]
[351101354,1738336270824,-703.41,0.00016986,2]
[351101355,1738336270834,-500.0,0.00016986,2]
[351101356,1738336270844,-500.0,0.00016986,2]
[351101357,1738336270854,-500.0,0.00016986,2]
[351101358,1738336270865,-500.0,0.00016986,2]
[351101359,1738336270874,-1090.7,0.00016986,2]
[351101360,1738336270884,-500.0,0.00016986,2]
[351101361,1738336270894,-234.64592601,0.00016986,2]
[351101362,1738336270904,-788.35,0.00016986,2]
[351101363,1738336270914,-559.23,0.00016986,2]
[351101364,1738336270924,-667.04,0.00016986,2]
[351101365,1738336270934,-500.0,0.00016986,2]
[351101366,1738336270944,-1427.28,0.00016986,2]
[351101367,1738336270955,-533.89,0.00016986,2]
[351101368,1738336270965,-500.0,0.00016986,2]
[351101369,1738336270975,-500.0,0.00016986,2]
[351101370,1738336270986,-500.0,0.00016986,2]
[351101371,1738336270997,-500.0,0.00016986,2]
[351101372,1738336271007,-500.0,0.00016986,2]
[351101373,1738336271017,-852.1,0.00016986,2]
[351101374,1738336271028,-500.0,0.00016986,2]
[351101375,1738336271038,-500.0,0.00016986,2]
[351101376,1738336271049,-525.58,0.00016986,2]
[351101377,1738336271060,-757.77,0.00016986,2]
[351101378,1738336271311,-512.07726709,0.00016986,2]
[351101379,1738336271332,-500.0,0.00016986,2]
[351101380,1738336271341,-1434.89,0.00016986,2]
[351101381,1738336271350,-603.49,0.00016986,2]
[351101382,1738336271361,-630.1,0.00016986,2]
[351101383,1738336271370,-500.0,0.00016986,2]
[351101384,1738336271380,-500.0,0.00016986,2]
[351101385,1738336271389,-500.0,0.00016986,2]
[351101386,1738336271399,-500.0,0.00016986,2]
[351101387,1738336271409,-500.0,0.00016986,2]
[351101388,1738336271418,-500.0,0.00016986,2]
[351101389,1738336271427,-858.97,0.00016986,2]
[351101390,1738336271437,-877.71,0.00016986,2]
[351101391,1738336271446,-1200.35,0.00016986,2]
[351101392,1738336271455,-950.79,0.00016986,2]
[351101393,1738336271464,-500.0,0.00016986,2]
[351101394,1738336271476,-613.65,0.00016986,2]
[351101395,1738336271485,-500.0,0.00016986,2]
[351101396,1738336271494,-620.12,0.00016986,2]
[351101397,1738336271503,-702.63,0.00016986,2]
[351101398,1738336271513,-500.0,0.00016986,2]
[351101399,1738336271522,-500.0,0.00016986,2]
[351101400,1738336271532,-541.51,0.00016986,2]
[351101401,1738336271545,-606.69,0.00016986,2]
[351101402,1738336271555,-616.16,0.00016986,2]
[351101403,1738336271565,-500.0,0.00016986,2]
[351101404,1738336271574,-500.0,0.00016986,2]
[351101405,1738336271585,-500.0,0.00016986,2]
[351101406,1738336271594,-500.0,0.00016986,2]
[351101407,1738336271603,-500.0,0.00016986,2]
[351101408,1738336271614,-500.0,0.00016986,2]
[351101409,1738336271624,-365.4432126,0.00016986,2]
[351101410,1738336271633,-500.0,0.00016986,2]
[351101411,1738336271643,-500.0,0.00016986,2]
[351101412,1738336271653,-704.31,0.00016986,2]
[351101413,1738336271662,-1130.83,0.00016986,2]
[351101414,1738336271672,-566.23,0.00016986,2]
[351101415,1738336271682,-500.0,0.00016986,2]
[351101416,1738336271692,-664.76,0.00016986,2]
[351101417,1738336271702,-620.24,0.00016986,2]
[351101418,1738336271711,-500.0,0.00016986,2]
[351101419,1738336271720,-1327.84,0.00016986,2]
[351101420,1738336271730,-500.0,0.00016986,2]
[351101421,1738336271740,-500.0,0.00016986,2]
[351101422,1738336271749,-632.53,0.00016986,2]
[351101423,1738336271759,-1398.15,0.00016986,2]
[351101424,1738336271768,-500.0,0.00016986,2]
[351101425,1738336271778,-1746.61,0.00016986,2]
[351101426,1738336271788,-240.19284315,0.00016986,2]
[351101427,1738336271798,-500.0,0.00016986,2]
[351101428,1738336271809,-500.0,0.00016986,2]
[351101429,1738336271818,-500.0,0.00016986,2]
[351101430,1738336271827,-500.0,0.00016986,2]
[351101431,1738336271837,-981.83,0.00016986,2]
[351101432,1738336271846,-1441.64,0.00016986,2]
[351101433,1738336271857,-516.69188497,0.00016986,2]
[351101434,1738336271867,-500.0,0.00016986,2]
[351101435,1738336271877,-637.09,0.00016986,2]
[351101436,1738336271887,-500.0,0.00016986,2]
[351101437,1738336271896,-1275.76,0.00016986,2]
[351101438,1738336271906,-2098.45,0.00016986,2]
[351101439,1738336271915,-626.81,0.00016986,2]
[351101440,1738336271925,-554.13,0.00016986,2]
[351101441,1738336271935,-921.1,0.00016986,2]
[351101442,1738336271944,-500.0,0.00016986,2]
[351101443,1738336271954,-4952.21,0.00016986,2]
[351101444,1738336271964,-578.79,0.00016986,2]
[351101445,1738336271974,-1771.39,0.00016986,2]
[351101446,1738336271984,-2143.02,0.00016986,2]
[351101447,1738336271993,-500.0,0.00016986,2]
[351101448,1738336272003,-567.12,0.00016986,2]
[351101449,1738336272012,-500.0,0.00016986,2]
[351101450,1738336272021,-611.57,0.00016986,2]
[351101451,1738336272031,-500.0,0.00016986,2]
[351101452,1738336272041,-500.0,0.00016986,2]
[351101453,1738336272051,-6888.33,0.00016986,2]
[351101454,1738336272061,-698.84,0.00016986,2]
[351101455,1738336272071,-500.0,0.00016986,2]
[351101456,1738336272080,-1103.61,0.00016986,2]
[351101457,1738336272090,-2195.87,0.00016986,2]
[351101458,1738336272100,-5130.74,0.00016986,2]
[351101459,1738336272109,-1252.77,0.00016986,2]
[351101460,1738336272120,-884.78,0.00016986,2]
[351101461,1738336272129,-3970.03,0.00016986,2]
[351101462,1738336272139,-1435.28,0.00016986,2]
[351101463,1738336272148,-500.0,0.00016986,2]
[351101464,1738336272158,-500.0,0.00016986,2]
[351101465,1738336272168,-1140.44,0.00016986,2]
[351101466,1738336272177,-2633.08,0.00016986,2]
[351101467,1738336272186,-4076.51,0.00016986,2]
[351101468,1738336272195,-500.0,0.00016986,2]
[351101469,1738336272205,-500.0,0.00016986,2]
[351101470,1738336272214,-1963.37,0.00016986,2]
[351101471,1738336272224,-2178.32,0.00016986,2]
[351101472,1738336272233,-2628.59,0.00016986,2]
[351101473,1738336272243,-1467.66,0.00016986,2]
[351101474,1738336272252,-559.86,0.00016986,2]
[351101475,1738336272262,-500.0,0.00016986,2]
[351101476,1738336272271,-643.53,0.00016986,2]
[351101477,1738336272280,-710.32,0.00016986,2]
[351101478,1738336272289,-500.0,0.00016986,2]
[351101479,1738336272299,-3326.89,0.00016986,2]
[351101480,1738336272308,-4506.81,0.00016986,2]
[351101481,1738336272317,-4413.89,0.00016986,2]
[351101482,1738336272327,-500.0,0.00016986,2]
[351101483,1738336272336,-993.49,0.00016986,2]
[351101484,1738336272346,-500.0,0.00016986,2]
[351101485,1738336272355,-612.33,0.00016986,2]
[351101486,1738336272365,-500.0,0.00016986,2]
[351101487,1738336272375,-1995.46,0.00016986,2]
[351101488,1738336272384,-538.54,0.00016986,2]
[351101489,1738336272394,-10054.63,0.00016986,2]
[351101490,1738336272403,-2411.51,0.00016986,2]
[351101491,1738336272413,-522.61820221,0.00016986,2]
[351101492,1738336272422,-1987.99,0.00016986,2]
[351101493,1738336272432,-807.99,0.00016986,2]
[351101494,1738336272442,-500.0,0.00016986,2]
[351101495,1738336272451,-5113.18,0.00016986,2]
[351101496,1738336272460,-256.258646,0.00016986,2]
[351101497,1738336272469,-500.0,0.00016986,2]
[351101498,1738336272479,-2620.84,0.00016986,2]
[351101499,1738336272488,-500.0,0.00016986,2]
[351101500,1738336272498,-4022.5,0.00016986,2]
[351101501,1738336272507,-2354.55,0.00016986,2]
[351101502,1738336272517,-781.24,0.00016986,2]
[351101503,1738336272526,-500.0,0.00016986,2]
[351101504,1738336272536,-1345.91,0.00016986,2]
[351101505,1738336272546,-500.0,0.00016986,2]
[351101506,1738336272558,-500.0,0.00016986,2]
[351101507,1738336272567,-500.0,0.00016986,2]
[351101508,1738336272577,-924.33,0.00016986,2]
[351101509,1738336272586,-500.0,0.00016986,2]
[351101510,1738336272597,-500.0,0.00016986,2]
[351101511,1738336272606,-722.64,0.00016986,2]
[351101512,1738336272617,-1019.42,0.00016986,2]
[351101513,1738336272628,-772.67,0.00016986,2]
[351101514,1738336272638,-501.59,0.00016986,2]
[351101515,1738336272647,-500.0,0.00016986,2]
[351101516,1738336272656,-500.0,0.00016986,2]
[351101517,1738336272665,-695.46,0.00016986,2]
[351101518,1738336272674,-151.0,0.00016986,2]
[351101519,1738336272684,-500.0,0.00016986,2]
[351101520,1738336272693,-500.0,0.00016986,2]
[351101521,1738336272702,-1047.26,0.00016986,2]
[351101522,1738336272712,-2271.55,0.00016986,2]
[351101523,1738336272721,-3878.3,0.00016986,2]
[351101524,1738336272730,-1641.73,0.00016986,2]
[351101525,1738336272740,-1055.71,0.00016986,2]
[351101526,1738336272750,-500.0,0.00016986,2]
[351101527,1738336272759,-758.79,0.00016986,2]
[351101528,1738336272769,-1452.48,0.00016986,2]
[351101529,1738336272778,-500.0,0.00016986,2]
[351101530,1738336272787,-500.0,0.00016986,2]
[351101531,1738336272797,-500.0,0.00016986,2]
[351101532,1738336272807,-500.0,0.00016986,2]
[351101533,1738336272816,-500.0,0.00016986,2]
[351101534,1738336272826,-2328.52,0.00016986,2]
[351101535,1738336272835,-3589.66,0.00016986,2]
[351101536,1738336272845,-500.0,0.00016986,2]
[351101537,1738336272854,-500.0,0.00016986,2]
[351101538,1738336272865,-721.79,0.00016986,2]
[351101539,1738336272875,-500.0,0.00016986,2]
[351101540,1738336272884,-1125.15,0.00016986,2]
[351101541,1738336272894,-500.0,0.00016986,2]
[351101542,1738336272903,-1172.82,0.00016986,2]
[351101543,1738336272912,-973.89,0.00016986,2]
[351101544,1738336272921,-1112.99,0.00016986,2]
[351101545,1738336272931,-500.0,0.00016986,2]
[351101546,1738336272940,-305.378221,0.00016986,2]
[351101547,1738336272950,-734.24,0.00016986,2]
[351101548,1738336272959,-834.05,0.00016986,2]
[351101549,1738336272969,-500.0,0.00016986,2]
[351101550,1738336272978,-305.378221,0.00016986,2]
[351101551,1738336272988,-500.0,0.00016986,2]
[351101552,1738336272997,-1958.03,0.00016986,2]
[351101553,1738336273006,-1216.38,0.00016986,2]
[351101554,1738336273015,-500.0,0.00016986,2]
[351101555,1738336273024,-762.12,0.00016986,2]
[351101556,1738336273033,-1127.28,0.00016986,2]
[351101557,1738336273042,-3529.86,0.00016986,2]
[351101558,1738336273051,-10559.92,0.00016986,2]
[351101559,1738336273060,-2055.3,0.00016986,2]
[351101560,1738336273069,-2622.42,0.00016986,2]
[351101561,1738336273079,-517.92,0.00016986,2]
[351101562,1738336273088,-1041.38,0.00016986,2]
[351101563,1738336273097,-1257.41,0.00016986,2]
[351101564,1738336273106,-881.62,0.00016986,2]
[351101565,1738336273118,-500.0,0.00016986,2]
[351101566,1738336273127,-505.53,0.00016986,2]
[351101567,1738336273136,-951.07,0.00016986,2]
[351101568,1738336273145,-500.0,0.00016986,2]
[351101569,1738336273154,-412.07900561,0.00016986,2]
[351101570,1738336273163,-1601.79,0.00016986,2]
[351101571,1738336273173,-500.0,0.00016986,2]
[351101572,1738336273182,-3023.48,0.00016986,2]
[351101573,1738336273191,-2186.38,0.00016986,2]
[351101574,1738336273201,-1439.48,0.00016986,2]
[351101575,1738336273210,-500.0,0.00016986,2]
[351101576,1738336273219,-557.54,0.00016986,2]
[351101577,1738336273229,-500.0,0.00016986,2]
[351101578,1738336273238,-573.33,0.00016986,2]
[351101579,1738336273247,-756.42,0.00016986,2]
[351101580,1738336273256,-639.43,0.00016986,2]
[351101581,1738336273265,-1661.1,0.00016986,2]
[351101582,1738336273274,-500.0,0.00016986,2]
[351101583,1738336273284,-679.07,0.00016986,2]
[351101584,1738336273293,-500.0,0.00016986,2]
[351101585,1738336273303,-1851.15,0.00016986,2]
[351101586,1738336273313,-798.64,0.00016986,2]
[351101587,1738336273323,-2143.53,0.00016986,2]
[351101588,1738336273332,-684.52,0.00016986,2]
[351101589,1738336273341,-454.96415333,0.00016986,2]
[351101590,1738336273351,-500.0,0.00016986,2]
[351101591,1738336273361,-1723.07,0.00016986,2]
[351101592,1738336273370,-906.88,0.00016986,2]
[351101593,1738336273380,-2004.75,0.00016986,2]
[351101594,1738336273389,-1099.67,0.00016986,2]
[351101595,1738336273398,-1372.99,0.00016986,2]
[351101596,1738336273407,-1555.39,0.00016986,2]
[351101597,1738336273417,-640.22,0.00016986,2]
[351101598,1738336273426,-500.0,0.00016986,2]
[351101599,1738336273435,-712.98,0.00016986,2]
[351101600,1738336273444,-753.43,0.00016986,2]
[351101601,1738336273454,-500.0,0.00016986,2]
[351101602,1738336273463,-762.33,0.00016986,2]
[351101603,1738336273472,-500.0,0.00016986,2]
[351101604,1738336273481,-500.0,0.00016986,2]
[351101605,1738336273490,-674.84,0.00016986,2]
[351101606,1738336273499,-2203.92,0.00016986,2]
[351101607,1738336273508,-330.562305,0.00016986,2]
[351101608,1738336273518,-2278.95,0.00016986,2]
[351101609,1738336273527,-2940.1,0.00016986,2]
[351101610,1738336273537,-856.83,0.00016986,2]
[351101611,1738336273550,-1551.27,0.00016986,2]
[351101612,1738336273559,-1610.25,0.00016986,2]
[351101613,1738336273570,-512.95,0.00016986,2]
[351101614,1738336273580,-330.562305,0.00016986,2]
[351101615,1738336273648,-3823.81,0.00016986,2]
[351101616,1738336273658,-3569.42,0.00016986,2]
[351101617,1738336273667,-1850.14,0.00016986,2]
[351101618,1738336273676,-500.0,0.00016986,2]
[351101619,1738336273686,-500.0,0.00016986,2]
[351101620,1738336273696,-3851.86,0.00016986,2]
[351101621,1738336273706,-6808.92,0.00016986,2]
[351101622,1738336273715,-1873.8,0.00016986,2]
[351101623,1738336273724,-2147.48,0.00016986,2]
[351101624,1738336273734,-2860.44,0.00016986,2]
[351101625,1738336273743,-500.0,0.00016986,2]
[351101626,1738336273752,-976.14,0.00016986,2]
[351101627,1738336273761,-2017.68,0.00016986,2]
[351101628,1738336273770,-1828.77,0.00016986,2]
[351101629,1738336273780,-621.16,0.00016986,2]
[351101630,1738336273789,-500.0,0.00016986,2]
[351101631,1738336273799,-500.0,0.00016986,2]
[351101632,1738336273808,-1135.92,0.00016986,2]
[351101633,1738336273817,-1709.9,0.00016986,2]
[351101634,1738336273826,-1342.8,0.00016986,2]
[351101635,1738336273835,-500.0,0.00016986,2]
[351101636,1738336273845,-2166.78,0.00016986,2]
[351101637,1738336273855,-1098.56,0.00016986,2]
[351101638,1738336273865,-1110.21,0.00016986,2]
[351101639,1738336273874,-500.0,0.00016986,2]
[351101640,1738336273884,-500.0,0.00016986,2]
[351101641,1738336273893,-773.72,0.00016986,2]
[351101642,1738336273903,-1303.09,0.00016986,2]
[351101643,1738336273912,-1277.79,0.00016986,2]
[351101644,1738336273921,-797.14,0.00016986,2]
[351101645,1738336273930,-990.49,0.00016986,2]
[351101646,1738336273939,-619.59011713,0.00016986,2]
[351101647,1738336273948,-1800.8405006,0.00016988,2]
[351101648,1738336273958,-1829.153748,0.00016988,2]
[351101649,1738336273968,-161.2118828,0.00016988,2]
[351101650,1738336273977,-163.7464948,0.00016988,2]
[351101651,1738336273986,-6741.7592285,0.00016988,2]
[351101652,1738336273996,-6847.754788,0.00016988,2]
[351101653,1738336274005,-3439.1863671,0.00016988,2]
[351101654,1738336274014,-3479.217595,0.00016988,2]
[351101655,1738336274023,-3300802.72189774,0.00017,2]
[351101656,1738336274464,-656.14,0.00017,2]
[351101657,1738336274590,-1000.0099704,0.00016986,2]
[351101658,1738336274603,-293.5800296,0.00016986,2]
[351101659,1738336274614,-104448.8605781,0.00017,2]
[351101660,1738336274976,-379.83347345,0.00012251,2]
[351101661,1738336274985,-351.47768177,0.00016438,2]
[351101662,1738336274996,-148.52231823,0.00016438,2]
[351101663,1738336275005,-500.0,0.00016438,2]
[351101664,1738336275014,-915.92547385,0.00017,2]
[351101665,1738336275025,-260.72299452,0.00017,2]
[351101666,1738336275036,-367.58584536,0.00017,2]
[351101667,1738336275048,-647.94999999,0.00017,2]
[351101668,1738336275280,-25.59742952,0.00016575,2]
[351101669,1738336275300,-474.40257048,0.00016575,2]
[351101670,1738336275309,-500.0,0.00016712,2]
[351101671,1738336275318,-500.0,0.00016849,2]
[351101672,1738336275327,-1025.59742952,0.00017,2]
[351101673,1738336275784,-440.3,0.00012,2]
[351101674,1738336275794,-500.0,0.00016438,2]
[351101675,1738336275803,-6215.3,0.00016438,2]
[351101676,1738336275812,-500.0,0.00016575,2]
[351101677,1738336275821,-6215.3,0.00016575,2]
[351101678,1738336275831,-6215.3,0.00016712,2]
[351101679,1738336275841,-6215.3,0.00016849,2]
[351101680,1738336275851,-500.0,0.00016986,2]
[351101681,1738336275860,-6215.3,0.00016986,2]
[351101682,1738336275870,-28533.2,0.00017,2]
[351101683,1738336275890,-500.0,0.00016712,2]
[351101684,1738336275899,-982.65110654,0.00017,2]
[351101685,1738336275911,-362.29682932,0.00017,2]
[351101686,1738336275927,-10275.75780111,0.00017,2]
[351101687,1738336275938,-523.55,0.00017,2]
[351101688,1738336279747,5558.0,0.000106,5]
[351101699,1738337361770,-202.190886,9.95e-05,2]
[351101700,1738337361791,-1675.22761498,0.0001,2]
[351101701,1738337361812,-2708.24248102,0.0001,2]
[351101704,1738337365618,4295.0,0.000111,5]
[351101711,1738337432121,-215535.41013226,0.0001,2]
[351101712,1738337432133,-59101.61262891,0.0001,2]
[351101713,1738337432144,-366019.44417748,0.0001,2]
[351101714,1738337432154,-156.74,0.00010137,2]
[351101715,1738337432165,-150.0,0.00011,2]
[351101716,1738337432174,-5799.03357479,0.00011099,2]
[351101717,1738337432184,-4094.98239369,0.00011151,2]
[351101718,1738337432193,-150.0,0.00011151,2]
[351101719,1738337432203,-500.0,0.000112,4]
[351101720,1738337432212,-1000.0,0.000113,4]
[351101721,1738337432222,-1600.0,0.000114,4]
[351101722,1738337432232,-2100.0,0.000115,4]
[351101723,1738337432242,-2600.0,0.000116,4]
[351101724,1738337432252,-500.0,0.000117,4]
[351101725,1738337432262,-500.0,0.000118,4]
[351101726,1738337432272,-4150.98981676,0.000119,2]
[351101727,1738337432284,-500.0,0.000119,4]
[351101728,1738337432295,-240.65209128,0.000119,2]
[351101729,1738337432305,-476.11807034,0.000119,2]
[351101730,1738337432315,-161.9800467,0.00011927,2]
[351101731,1738337432325,-28808.0,0.00011973,2]
[351101732,1738337432334,-500.0,0.00011996,2]
[351101733,1738337432344,-257.67832674,0.00011996,2]
[351101734,1738337432354,-109131.55629138,0.00011997,2]
[351101735,1738337432363,-2321714.01313084,0.00012,2]
[351101736,1738337432380,-515.24829337,0.00012,2]
[351101737,1738337432391,-547.91945619,0.00012,2]
[351101738,1738337432414,-67039.6047972,0.00012,2]
[351101739,1738337432426,-94404.17937043,0.00012,2]
[351101740,1738337432444,-3468.8780631,0.00012,2]
[351101741,1738337432455,-500.0,0.00012,2]
[351101742,1738337432467,-398603.87444417,0.00012,2]
[351101743,1738337432478,-31407.3204437,0.00012,2]
[351101744,1738337432489,-2366.26922771,0.00012,2]
[351101745,1738337432500,-4606.73125521,0.00012,2]
[351101746,1738337432519,-61228.76875509,0.00012,2]
[351101747,1738337432530,-3262.1,0.00012,2]
[351101748,1738337432544,-3808.706948,0.00012,2]
[351101749,1738337432651,-3054.94382158,0.00012,2]
[351101750,1738337432662,-29932.55788102,0.00012,2]
[351101751,1738337432674,-692.5626787,0.00012,2]
[351101758,1738337437890,-213.57758436,0.00010037,2]
[351101759,1738337437900,-539.72444699,0.00011099,2]
[351101760,1738337437911,-5259.30912773,0.00011099,2]
[351101761,1738337437920,-107.74325826,0.00012,2]
[351101762,1738337437931,-2015.28778282,0.00012,2]
[351101763,1738337437943,-531.94526767,0.00012,2]
[351101764,1738337437955,-806.88000409,0.00012,2]
[351101765,1738337437974,-260.9127872,0.00012,2]
[351101766,1738337437995,-667.92699873,0.00012,2]
[351101767,1738337438039,-903.34239422,0.00012,2]
[351101768,1738337438050,-1672.34,0.00012,2]
[351101769,1738337438062,-699.54,0.00012,2]
[351101770,1738337438190,-309.26026771,0.00012,2]
[351101771,1738337438202,-9865063.5838372,0.00012,2]
[351101772,1738337438212,-759.93240354,0.00012,2]
[351101773,1738337438222,-619.68,0.00013057,2]
[351101774,1738337438231,-250.0,0.00013213,2]
[351101775,1738337438241,-1213.28,0.00013475,2]
[351101776,1738337438250,-1100.05,0.000137,2]
[351101777,1738337438260,-1100.05,0.000137,2]
[351101778,1738337438269,-528.35725521,0.000141,2]
[351101779,1738337438279,-173.94,0.00014149,2]
[351101780,1738337438290,-4150.98981674,0.00014667,2]
[351101781,1738337438299,-240.65209126,0.00014667,2]
[351101782,1738337438308,-476.11807034,0.00014667,2]
[351101783,1738337438317,-619.68,0.0001469,2]
[351101784,1738337438327,-2207.6599,0.00015,10]
[351101785,1738337438336,-13501.27977824,0.00015,2]
[351101786,1738337438345,-14905.5500265,0.00015,2]
[351101787,1738337438355,-161.98004667,0.00015186,2]
[351101788,1738337438364,-23900.0,0.00015228,2]
[351101790,1738337438373,-3243.5458827,0.000153,2]
[351101791,1738337438382,-3243.54588259,0.000153,2]
[351101792,1738337438391,-3243.54588259,0.000153,2]
[351101793,1738337438401,-3243.54588259,0.000153,2]
[351101794,1738337438410,-3243.54588259,0.000153,2]
[351101796,1738337438420,-3243.54588259,0.000153,2]
[351101798,1738337438593,-3243.54588259,0.000153,2]
[351101799,1738337438657,-3243.54588259,0.000153,2]
[351101800,1738337438666,-3243.54588259,0.000153,2]
[351101801,1738337438677,-3243.54588259,0.000153,2]
[351101802,1738337438686,-3243.54588259,0.000153,2]
[351101803,1738337438696,-3243.54588259,0.000153,2]
[351101804,1738337438705,-3243.54588259,0.000153,2]
[351101805,1738337438714,-316.11,0.00015304,2]
[351101806,1738337438727,-1000.0,0.0001543,2]
[351101807,1738337438741,-3243.54588259,0.00015486,2]
[351101808,1738337438751,-166.08,0.00015553,2]
[351101809,1738337438762,-190.32,0.00015726,2]
[351101810,1738337438771,-1213.28,0.00015739,2]
[351101811,1738337438781,-3243.54588259,0.00015762,2]
[351101812,1738337438793,-185.23,0.00015852,2]
[351101813,1738337438802,-6919.73553785,0.00015922,2]
[351101814,1738337438812,-158.04,0.00015941,2]
[351101815,1738337438822,-31719.20698009,0.00016,2]
[351101816,1738337438831,-52380.88,0.00016,2]
[351101817,1738337438841,-3243.54588259,0.00016038,2]
[351101818,1738337438850,-250.0,0.0001618,2]
[351101819,1738337438860,-2000.0,0.0001618,2]
[351101820,1738337438869,-174.64,0.00016216,2]
[351101821,1738337438879,-161.62654188,0.00016238,2]
[351101822,1738337438889,-7513.0768,0.00016238,2]
[351101823,1738337438899,-3961.5963,0.00016238,2]
[351101824,1738337438909,-1000.0,0.00016238,2]
[351101825,1738337438918,-5000.0,0.00016238,2]
[351101826,1738337438928,-804.98,0.00016247,2]
[351101827,1738337438938,-774.06,0.00016247,2]
[351101828,1738337438950,-3243.54588259,0.00016314,2]
[351101829,1738337438959,-619.68,0.00016322,2]
[351101830,1738337438969,-22368.9393,0.00016338,2]
[351101831,1738337438979,-4291.8046,0.00016338,2]
[351101832,1738337438989,-7120.1014,0.00016338,2]
[351101833,1738337438998,-318756.7769,0.00016338,2]
[351101834,1738337439007,-6748.1685,0.00016338,2]
[351101835,1738337439017,-812813.54998312,0.0001638,2]
[351101836,1738337439030,-530.26102302,0.00016438,2]
[351101837,1738337439040,-508.15528765,0.00016438,2]
[351101838,1738337439049,-500.0,0.00016438,2]
[351101839,1738337439059,-504.91607616,0.00016438,2]
[351101840,1738337439068,-501.69113918,0.00016438,2]
[351101841,1738337439078,-500.67345564,0.00016438,2]
[351101842,1738337439088,-500.0,0.00016438,2]
[351101843,1738337439097,-508.85758665,0.00016438,2]
[351101844,1738337439107,-500.0,0.00016438,2]
[351101845,1738337439116,-209.94087619,0.00016438,2]
[351101846,1738337439126,-500.0,0.00016438,2]
[351101847,1738337439135,-500.0,0.00016438,2]
[351101848,1738337439145,-500.0,0.00016438,2]
[351101849,1738337439155,-500.88474496,0.00016438,2]
[351101850,1738337439165,-500.0,0.00016438,2]
[351101851,1738337439175,-502.95059892,0.00016438,2]
[351101852,1738337439185,-500.0,0.00016438,2]
[351101853,1738337439195,-504.92408612,0.00016438,2]
[351101854,1738337439205,-505.01379073,0.00016438,2]
[351101855,1738337439214,-500.0,0.00016438,2]
[351101856,1738337439224,-248.41018001,0.00016438,2]
[351101857,1738337439234,-501.00028724,0.00016438,2]
[351101858,1738337439243,-504.65391323,0.00016438,2]
[351101859,1738337439252,-502.42174967,0.00016438,2]
[351101860,1738337439262,-500.0,0.00016438,2]
[351101861,1738337439272,-500.0,0.00016438,2]
[351101862,1738337439282,-500.0,0.00016438,2]
[351101863,1738337439294,-500.0,0.00016438,2]
[351101864,1738337439303,-500.0,0.00016438,2]
[351101865,1738337439313,-500.0,0.00016438,2]